fUSD/lending_fUSD_20251210
["ID","MTS","AMOUNT","RATE_DAILY","PERIOD"]
[398070631,1765356631810,-1000.0,0.00013434,2]
[398070632,1765356631823,-533.88981491,0.00013434,2]
[398070633,1765356631832,-500.0,0.00013434,2]
[398070634,1765356631842,-1000.0,0.00013434,2]
[398070635,1765356631851,-437.51777015,0.00013434,2]
[398070636,1765356631861,-613.91086761,0.00013434,2]
[398070637,1765356631870,-152.70874891,0.00013434,2]
[398070638,1765356631879,-1000.0,0.00013434,2]
[398070639,1765356631888,-1000.0,0.00013434,2]
[398070640,1765356631898,-1000.0,0.00013434,2]
[398070641,1765356631907,-1000.0,0.00013434,2]
[398070642,1765356631917,-1078.86550441,0.00013434,2]
[398070643,1765356631926,-194.72792766,0.00013434,2]
[398070644,1765356631936,-250.0,0.00013434,2]
[398070645,1765356631946,-250.0,0.00013434,2]
[398070646,1765356631956,-250.0,0.00013434,2]
[398070647,1765356631966,-250.0,0.00013434,2]
[398070648,1765356631976,-259.33088401,0.00013434,2]
[398070649,1765356631985,-150.4,0.00013478,2]
[398070650,1765356631995,-150.35,0.00013478,2]
[398070651,1765356632005,-150.38,0.00013478,2]
[398070652,1765356632014,-4942.5483051,0.00013481,2]
[398070653,1765356632023,-231.74781823,0.00013481,2]
[398070654,1765356632033,-151.0,0.00013566,2]
[398070655,1765356632042,-500.0,0.00013568,2]
[398070656,1765356632052,-500.0,0.00013568,2]
[398070657,1765356632062,-500.0,0.00013568,2]
[398070658,1765356632072,-280.99482661,0.00013568,2]
[398070659,1765356632082,-500.0,0.00013568,2]
[398070660,1765356632092,-221.95403735,0.00013568,2]
[398070661,1765356632101,-500.0,0.00013568,2]
[398070662,1765356632110,-500.0,0.00013568,2]
[398070663,1765356632120,-263.87561189,0.00013568,2]
[398070664,1765356632129,-500.0,0.00013568,2]
[398070665,1765356632139,-500.0,0.00013568,2]
[398070666,1765356632149,-500.0,0.00013568,2]
[398070667,1765356632159,-500.0,0.00013568,2]
[398070668,1765356632169,-500.0,0.00013568,2]
[398070669,1765356632179,-500.0,0.00013568,2]
[398070670,1765356632188,-500.0,0.00013568,2]
[398070671,1765356632198,-500.0,0.00013568,2]
[398070672,1765356632207,-500.0,0.00013568,2]
[398070673,1765356632216,-500.0,0.00013568,2]
[398070674,1765356632227,-500.0,0.00013568,2]
[398070675,1765356632236,-500.0,0.00013568,2]
[398070676,1765356632245,-500.0,0.00013568,2]
[398070677,1765356632255,-500.0,0.00013568,2]
[398070678,1765356632264,-500.0,0.00013568,2]
[398070679,1765356632275,-500.0,0.00013568,2]
[398070680,1765356632284,-500.0,0.00013568,2]
[398070681,1765356632294,-500.0,0.00013568,2]
[398070682,1765356632303,-500.0,0.00013568,2]
[398070683,1765356632569,-500.0,0.00013568,2]
[398070684,1765356632579,-500.0,0.00013568,2]
[398070685,1765356632588,-500.0,0.00013568,2]
[398070686,1765356632597,-500.0,0.00013568,2]
[398070687,1765356632607,-500.0,0.00013568,2]
[398070688,1765356632616,-312.98598316,0.00013568,2]
[398070689,1765356632625,-629908.53371251,0.00013569,2]
[398070690,1765356632637,-20187.42683146,0.00013569,2]
[398070691,1765356632648,-11010.72860049,0.00013569,2]
[398070692,1765356632659,-39005.53738035,0.00013569,2]
[398070693,1765356632674,-1178.93436033,0.00013569,2]
[398070694,1765356632685,-1183.6451463,0.00013569,2]
[398070723,1765356639483,-11038.63218479,0.00013569,2]
[398070724,1765356639495,-14061.98089215,0.00013569,2]
[398070725,1765356639506,-433.47969671,0.00013569,2]
[398070726,1765356639536,-3970.38916629,0.00013569,2]
[398070727,1765356639548,-4473.5,0.00013569,2]
[398070778,1765357233803,1052.25,6.344e-05,2]
[398070779,1765357234009,1052.25,6.678e-05,2]
[398070780,1765357234205,1052.25,7.012e-05,2]
[398070781,1765357234399,1052.25,7.346e-05,2]
[398070782,1765357234593,1052.25,7.68e-05,2]
[398070783,1765357234779,1052.25,8.014e-05,2]
[398070784,1765357234977,1052.25,8.348e-05,2]
[398070785,1765357235178,1052.25,8.682e-05,2]
[398070786,1765357235407,479.27543699,9.016e-05,2]
[398070787,1765357235428,572.97456301,9.016e-05,2]
[398070788,1765357235671,1052.25,9.35e-05,2]
[398070789,1765357235886,1052.25,9.683e-05,2]
[398070790,1765357306860,241.716613,8.181e-05,2]
[398070791,1765357408625,150.05,0.00025,120]
[398070792,1765357450644,-177.29545729,0.00010017,2]
[398070793,1765357450667,-1052.25,0.00010017,2]
[398070794,1765357450688,-1052.25,0.00010351,2]
[398070795,1765357450710,-1052.25,0.00010685,2]
[398070796,1765357450731,-195.0,0.00011019,2]
[398070797,1765357450754,-300.0,0.00011019,2]
[398070798,1765357450776,-1052.25,0.00011019,2]
[398070799,1765357450797,-1052.25,0.00011353,2]
[398070800,1765357450819,-1052.25,0.00011687,2]
[398070801,1765357450840,-1052.25,0.00012021,2]
[398070802,1765357450860,-179.35,0.00012069,2]
[398070803,1765357450881,-16782.60454271,0.00012162,2]
[398070804,1765357751579,-250.0,0.00011019,2]
[398070805,1765357751599,-1200.0,0.00012161,2]
[398070806,1765357751618,-1200.0,0.00012161,2]
[398070807,1765357751637,-7350.0,0.00012162,2]
[398070808,1765357752868,-2071.90545729,0.00012162,2]
[398070809,1765357752889,-300.0,0.00012354,2]
[398070810,1765357752910,-300.0,0.00012354,2]
[398070811,1765357752931,-1052.25,0.00012355,2]
[398070812,1765357753248,-500.0,0.00012521,2]
[398070813,1765357753268,-156.04438028,0.00012551,2]
[398070814,1765357753288,-150.0,0.00012551,2]
[398070815,1765357753307,-205.71936407,0.00012551,2]
[398070816,1765357753325,-214.82,0.00012659,2]
[398070817,1765357753344,-1052.25,0.00012689,2]
[398070818,1765357753368,-168.55,0.00012825,2]
[398070819,1765357753388,-255.0,0.00012825,2]
[398070820,1765357753408,-1000.0,0.0001289,3]
[398070821,1765357753427,-891.22117229,0.00013,2]
[398070822,1765357753447,-1215.64,0.00013178,2]
[398070823,1765357753466,-466.59962607,0.00013178,2]
[398070824,1765357753957,-460.72037393,0.00013178,2]
[398070825,1765357753977,-151.0,0.00013308,2]
[398070826,1765357754000,-257.91778498,0.00013308,2]
[398070827,1765357754021,-1000.0,0.00013308,2]
[398070828,1765357754042,-1200.0,0.00013348,2]
[398070829,1765357754062,-1680.0,0.00013378,2]
[398070830,1765357754083,-1091.0,0.00013378,2]
[398070831,1765357754112,-970.0,0.00013385,2]
[398070832,1765357754135,-150.0,0.00013467,2]
[398070833,1765357754156,-413.0045,0.00013468,2]
[398070834,1765357754180,-2626.35734109,0.00013468,2]
[398070835,1765357754646,-1959.27310514,0.00013468,2]
[398070836,1765357754667,-8040.72689486,0.00013468,2]
[398070837,1765357755349,-1767.46410823,0.00013468,2]
[398070838,1765357755380,-326.25720922,0.00013468,2]
[398070839,1765357755402,-166.54,0.000135,2]
[398070840,1765357755425,-1091.0,0.000135,2]
[398070841,1765357755448,-420.0,0.00013557,2]
[398070842,1765357755469,-200.0,0.0001356,2]
[398070843,1765357755491,-500.0,0.0001356,2]
[398070844,1765357755515,-533.88981491,0.0001356,2]
[398070845,1765357755542,-1000.0,0.0001356,2]
[398070846,1765357755562,-500.0,0.0001356,2]
[398070847,1765357755583,-500.0,0.0001356,2]
[398070848,1765357755604,-1000.0,0.0001356,2]
[398070849,1765357755625,-500.0,0.0001356,2]
[398070850,1765357755646,-1000.0,0.0001356,2]
[398070851,1765357755666,-494.84886764,0.0001356,2]
[398070852,1765357755883,-5.15113236,0.0001356,2]
[398070853,1765357755904,-1000.0,0.0001356,2]
[398070854,1765357755924,-318.17855093,0.0001356,2]
[398070855,1765357755945,-1000.0,0.0001356,2]
[398070856,1765357755967,-1000.0,0.0001356,2]
[398070857,1765357755991,-1000.0,0.0001356,2]
[398070858,1765357756013,-1000.0,0.0001356,2]
[398070859,1765357756032,-1000.0,0.0001356,2]
[398070860,1765357756052,-194.72792766,0.0001356,2]
[398070861,1765357756073,-1000.0,0.0001356,2]
[398070862,1765357756093,-1000.0,0.0001356,2]
[398070863,1765357756116,-1000.0,0.0001356,2]
[398070864,1765357756149,-481.94238905,0.0001356,2]
[398070865,1765357756362,-518.05761095,0.0001356,2]
[398070866,1765357756384,-201.44293728,0.0001356,2]
[398070867,1765357756405,-500.0,0.0001356,2]
[398070868,1765357756435,-151.0,0.0001356,2]
[398070869,1765357756457,-500.0,0.0001356,2]
[398070870,1765357756477,-500.0,0.0001356,2]
[398070871,1765357756498,-500.0,0.0001356,2]
[398070872,1765357756519,-317.97791297,0.0001356,2]
[398070873,1765357756539,-500.0,0.0001356,2]
[398070874,1765357756559,-500.0,0.0001356,2]
[398070875,1765357756580,-1000.0,0.0001356,2]
[398070876,1765357756602,-1000.0,0.0001356,2]
[398070877,1765357756623,-1000.0,0.0001356,2]
[398070878,1765357756644,-500.0,0.0001356,2]
[398070879,1765357756665,-151.0,0.0001356,2]
[398070880,1765357756686,-1000.0,0.0001356,2]
[398070881,1765357756708,-151.0,0.0001356,2]
[398070882,1765357756731,-1000.0,0.0001356,2]
[398070883,1765357756753,-9.5215388,0.0001356,2]
[398070884,1765357756972,-141.4784612,0.0001356,2]
[398070885,1765357756995,-1000.0,0.0001356,2]
[398070886,1765357757017,-151.0,0.0001356,2]
[398070887,1765357757039,-1000.0,0.0001356,2]
[398070888,1765357757060,-1000.0,0.0001356,2]
[398070889,1765357757082,-151.0,0.0001356,2]
[398070890,1765357757103,-1000.0,0.0001356,2]
[398070891,1765357757123,-151.0,0.0001356,2]
[398070892,1765357757144,-1000.0,0.0001356,2]
[398070893,1765357757165,-151.0,0.0001356,2]
[398070894,1765357757185,-1000.0,0.0001356,2]
[398070895,1765357757206,-151.0,0.0001356,2]
[398070896,1765357757227,-1000.0,0.0001356,2]
[398070897,1765357757249,-151.0,0.0001356,2]
[398070898,1765357757270,-1000.0,0.0001356,2]
[398070899,1765357757291,-151.0,0.0001356,2]
[398070900,1765357757314,-158.60499297,0.0001356,2]
[398070901,1765357757334,-642.91654583,0.0001356,2]
[398070902,1765357758343,-27.88624343,0.0001356,2]
[398070903,1765357758370,-250.0,0.0001356,2]
[398070904,1765357758391,-250.0,0.0001356,2]
[398070905,1765357758413,-250.0,0.0001356,2]
[398070906,1765357758434,-250.0,0.0001356,2]
[398070907,1765357758455,-250.0,0.0001356,2]
[398070908,1765357758475,-250.0,0.0001356,2]
[398070909,1765357758494,-250.0,0.0001356,2]
[398070910,1765357758513,-250.0,0.0001356,2]
[398070911,1765357758533,-250.0,0.0001356,2]
[398070912,1765357758552,-250.0,0.0001356,2]
[398070913,1765357758572,-250.0,0.0001356,2]
[398070914,1765357758591,-250.0,0.0001356,2]
[398070915,1765357758610,-250.0,0.0001356,2]
[398070916,1765357758629,-151.0,0.00013565,2]
[398070917,1765357758648,-1001.746,0.00013567,2]
[398070918,1765357758668,-5569.36775657,0.00013568,2]
[398070919,1765357761283,-150.0,0.00012757,2]
[398070920,1765357761304,-9850.0,0.00013568,2]
[398070921,1765357763296,-10000.0,0.00013568,2]
[398070922,1765357777292,-500.0,0.0001356,2]
[398070923,1765357777313,-500.0,0.0001356,2]
[398070924,1765357777334,-150.0,0.0001356,2]
[398070925,1765357777358,-7476.0,0.00013568,2]
[398070954,1765357831644,-300.0,0.00013559,2]
[398070955,1765357831654,-184.0,0.00013559,2]
[398070956,1765357831663,-732.13364434,0.00013559,2]
[398070957,1765357831686,-467.86635566,0.00013559,2]
[398070958,1765357831695,-262.0,0.00013559,2]
[398070959,1765357831704,-150.0,0.0001356,2]
[398070960,1765357831714,-150.0,0.0001356,2]
[398070961,1765357831724,-150.0,0.0001356,2]
[398070962,1765357831733,-284.60220408,0.0001356,2]
[398070963,1765357831743,-500.0,0.0001356,2]
[398070965,1765357831752,-150.0,0.0001356,2]
[398070967,1765357831761,-150.0,0.0001356,2]
[398070969,1765357831771,-162636.68160152,0.00013568,2]
[398070996,1765357832231,-33099.92500797,0.00013568,2]
[398070997,1765357832243,-12768.79347618,0.00013568,2]
[398071000,1765357837597,-324.42923855,0.00013568,2]
[398071001,1765357837705,-335.00823583,0.00013568,2]
[398071002,1765357837831,-1048.99381,0.00013568,2]
[398071016,1765357839829,-73234.18022538,0.00013568,2]
[398071017,1765357839839,-4205.8903841,0.00013568,2]
[398071018,1765357839848,-54067.3268758,0.00013568,2]
[398071019,1765357839858,-150.0,0.00013568,2]
[398071020,1765357839868,-500.0,0.00013568,2]
[398071021,1765357839877,-1000.0,0.00013568,2]
[398071022,1765357839887,-200.0,0.00013569,2]
[398071023,1765357839896,-200.0,0.00013569,2]
[398071024,1765357839906,-151.0,0.00013569,2]
[398071025,1765357839916,-359.75556328,0.00013569,2]
[398071026,1765357839925,-168.0,0.00013581,2]
[398071027,1765357839935,-4798.0293,0.00013652,2]
[398071028,1765357839944,-500.0,0.00013697,2]
[398071029,1765357839954,-500.0,0.00013697,2]
[398071030,1765357839964,-150.0,0.00013697,2]
[398071031,1765357839974,-169.6143275,0.00013697,2]
[398071032,1765357839984,-150.0,0.00013697,2]
[398071033,1765357839993,-500.0,0.00013697,2]
[398071034,1765357840003,-150.0,0.00013697,2]
[398071035,1765357840013,-500.0,0.00013697,2]
[398071036,1765357840022,-500.0,0.00013697,2]
[398071037,1765357840032,-426.38756119,0.00013697,2]
[398071038,1765357840041,-411.78961174,0.00013698,2]
[398071039,1765357840051,-500.0,0.00013698,2]
[398071040,1765357840060,-500.0,0.00013698,2]
[398071041,1765357840069,-320.10433197,0.00013698,2]
[398071042,1765357840079,-500.0,0.00013698,2]
[398071043,1765357840088,-500.0,0.00013698,2]
[398071044,1765357840097,-500.0,0.00013698,2]
[398071045,1765357840106,-500.0,0.00013698,2]
[398071046,1765357840116,-500.0,0.00013698,2]
[398071047,1765357840125,-500.0,0.00013698,2]
[398071048,1765357840135,-500.0,0.00013698,2]
[398071049,1765357840145,-210.61905572,0.00013698,2]
[398071050,1765357840155,-500.0,0.00013698,2]
[398071051,1765357840165,-504.48323249,0.00013698,2]
[398071052,1765357840175,-500.0,0.00013698,2]
[398071053,1765357840185,-283.95454724,0.00013698,2]
[398071055,1765357840196,-500.0,0.00013698,2]
[398071057,1765357840209,-742.43,0.00013698,2]
[398071058,1765357840220,-1010.84,0.00013698,2]
[398071059,1765357840229,-500.0,0.00013698,2]
[398071060,1765357840239,-500.0,0.00013698,2]
[398071061,1765357840249,-500.0,0.00013698,2]
[398071062,1765357840258,-500.0,0.00013698,2]
[398071063,1765357840268,-500.0,0.00013698,2]
[398071064,1765357840278,-500.0,0.00013698,2]
[398071065,1765357840288,-849.82,0.00013698,2]
[398071066,1765357840298,-174.96818396,0.00013698,2]
[398071067,1765357840308,-500.0,0.00013698,2]
[398071068,1765357840318,-500.0,0.00013698,2]
[398071069,1765357840328,-641.36,0.00013698,2]
[398071070,1765357840337,-500.0,0.00013698,2]
[398071071,1765357840348,-500.0,0.00013698,2]
[398071072,1765357840358,-512.8692514,0.00013698,2]
[398071073,1765357840368,-804.78,0.00013698,2]
[398071074,1765357840378,-500.0,0.00013698,2]
[398071075,1765357840387,-500.0,0.00013698,2]
[398071076,1765357840397,-500.0,0.00013698,2]
[398071077,1765357840406,-500.0,0.00013698,2]
[398071078,1765357840418,-500.0,0.00013698,2]
[398071079,1765357840429,-500.0,0.00013698,2]
[398071080,1765357840438,-500.0,0.00013698,2]
[398071081,1765357840448,-500.0,0.00013698,2]
[398071082,1765357840458,-500.0,0.00013698,2]
[398071083,1765357840469,-500.0,0.00013698,2]
[398071084,1765357840478,-627.91,0.00013698,2]
[398071085,1765357840488,-500.0,0.00013698,2]
[398071086,1765357840501,-500.0,0.00013698,2]
[398071087,1765357840511,-500.0,0.00013698,2]
[398071088,1765357840521,-500.0,0.00013698,2]
[398071089,1765357840530,-500.0,0.00013698,2]
[398071090,1765357840540,-166.27650027,0.00013698,2]
[398071091,1765357840549,-500.0,0.00013698,2]
[398071092,1765357840559,-500.0,0.00013698,2]
[398071093,1765357840568,-500.0,0.00013698,2]
[398071094,1765357840578,-580.49,0.00013698,2]
[398071095,1765357840587,-684.03,0.00013698,2]
[398071096,1765357840596,-151.0,0.00013698,2]
[398071097,1765357840606,-669.46,0.00013698,2]
[398071098,1765357840617,-533.51,0.00013698,2]
[398071099,1765357840627,-500.0,0.00013698,2]
[398071100,1765357840637,-746.33,0.00013698,2]
[398071101,1765357840646,-500.0,0.00013698,2]
[398071102,1765357840656,-500.0,0.00013698,2]
[398071103,1765357840666,-500.0,0.00013698,2]
[398071104,1765357840675,-500.0,0.00013698,2]
[398071105,1765357840685,-500.0,0.00013698,2]
[398071106,1765357840696,-500.0,0.00013698,2]
[398071107,1765357840706,-542.46,0.00013698,2]
[398071108,1765357840716,-500.0,0.00013698,2]
[398071109,1765357840726,-500.0,0.00013698,2]
[398071110,1765357840735,-500.0,0.00013698,2]
[398071111,1765357840745,-500.0,0.00013698,2]
[398071112,1765357840754,-500.0,0.00013698,2]
[398071113,1765357840763,-500.0,0.00013698,2]
[398071114,1765357840774,-500.0,0.00013698,2]
[398071115,1765357840783,-500.0,0.00013698,2]
[398071116,1765357840792,-500.0,0.00013698,2]
[398071117,1765357840802,-500.0,0.00013698,2]
[398071118,1765357840811,-500.0,0.00013698,2]
[398071119,1765357840821,-500.0,0.00013698,2]
[398071120,1765357840831,-500.0,0.00013698,2]
[398071121,1765357840840,-500.0,0.00013698,2]
[398071122,1765357840850,-500.0,0.00013698,2]
[398071123,1765357840860,-525.19859555,0.00013698,2]
[398071124,1765357840869,-500.0,0.00013698,2]
[398071125,1765357840879,-500.0,0.00013698,2]
[398071126,1765357840888,-500.0,0.00013698,2]
[398071127,1765357840897,-500.0,0.00013698,2]
[398071128,1765357840908,-500.0,0.00013698,2]
[398071129,1765357840918,-468.41815531,0.00013698,2]
[398071130,1765357840929,-500.0,0.00013698,2]
[398071131,1765357840939,-500.0,0.00013698,2]
[398071132,1765357840949,-718.55,0.00013698,2]
[398071133,1765357840958,-500.0,0.00013698,2]
[398071134,1765357840968,-500.0,0.00013698,2]
[398071135,1765357840977,-604.06,0.00013698,2]
[398071136,1765357840987,-500.0,0.00013698,2]
[398071137,1765357840996,-500.0,0.00013698,2]
[398071138,1765357841006,-501.76,0.00013698,2]
[398071139,1765357841016,-500.0,0.00013698,2]
[398071140,1765357841025,-500.0,0.00013698,2]
[398071141,1765357841035,-500.0,0.00013698,2]
[398071142,1765357841044,-210.60515988,0.00013698,2]
[398071143,1765357841054,-500.0,0.00013698,2]
[398071144,1765357841063,-500.0,0.00013698,2]
[398071145,1765357841073,-500.0,0.00013698,2]
[398071146,1765357841083,-500.0,0.00013698,2]
[398071147,1765357841092,-697.8,0.00013698,2]
[398071148,1765357841102,-500.0,0.00013698,2]
[398071149,1765357841111,-272.14983314,0.00013698,2]
[398071150,1765357841121,-209.62246633,0.00013698,2]
[398071151,1765357841130,-573.86,0.00013698,2]
[398071152,1765357841139,-500.0,0.00013698,2]
[398071153,1765357841148,-500.0,0.00013698,2]
[398071154,1765357841158,-767.15,0.00013698,2]
[398071155,1765357841168,-683.07,0.00013698,2]
[398071156,1765357841178,-225.33109518,0.00013698,2]
[398071157,1765357841188,-500.0,0.00013698,2]
[398071158,1765357841197,-500.0,0.00013698,2]
[398071159,1765357841207,-371.4079137,0.00013698,2]
[398071160,1765357841217,-500.0,0.00013698,2]
[398071161,1765357841226,-500.0,0.00013698,2]
[398071162,1765357841236,-500.0,0.00013698,2]
[398071163,1765357841245,-1239.48,0.00013698,2]
[398071164,1765357841254,-500.0,0.00013698,2]
[398071165,1765357841264,-772.48,0.00013698,2]
[398071166,1765357841274,-500.0,0.00013698,2]
[398071167,1765357841283,-500.0,0.00013698,2]
[398071168,1765357841292,-500.0,0.00013698,2]
[398071169,1765357841302,-500.0,0.00013698,2]
[398071170,1765357841312,-500.0,0.00013698,2]
[398071171,1765357841323,-500.0,0.00013698,2]
[398071172,1765357841334,-500.0,0.00013698,2]
[398071173,1765357841344,-865.23,0.00013698,2]
[398071174,1765357841354,-500.0,0.00013698,2]
[398071175,1765357841363,-500.0,0.00013698,2]
[398071176,1765357841373,-500.0,0.00013698,2]
[398071177,1765357841383,-500.0,0.00013698,2]
[398071178,1765357841392,-500.0,0.00013698,2]
[398071179,1765357841402,-724.59,0.00013698,2]
[398071180,1765357841412,-500.0,0.00013698,2]
[398071181,1765357841426,-509.68,0.00013698,2]
[398071182,1765357841435,-585.60010702,0.00013698,2]
[398071183,1765357841445,-500.0,0.00013698,2]
[398071184,1765357841454,-702.19,0.00013698,2]
[398071185,1765357841465,-500.0,0.00013698,2]
[398071186,1765357841474,-546.23,0.00013698,2]
[398071187,1765357841484,-500.0,0.00013698,2]
[398071188,1765357841493,-605.66,0.00013698,2]
[398071189,1765357841503,-706.08,0.00013698,2]
[398071190,1765357841512,-500.0,0.00013698,2]
[398071191,1765357841521,-500.0,0.00013698,2]
[398071192,1765357841531,-500.0,0.00013698,2]
[398071193,1765357841540,-500.0,0.00013698,2]
[398071194,1765357841549,-500.0,0.00013698,2]
[398071195,1765357841559,-500.0,0.00013698,2]
[398071196,1765357841568,-500.0,0.00013698,2]
[398071197,1765357841577,-500.0,0.00013698,2]
[398071198,1765357841587,-500.0,0.00013698,2]
[398071199,1765357841595,-1174.03,0.00013698,2]
[398071200,1765357841604,-500.0,0.00013698,2]
[398071201,1765357841613,-557.43,0.00013698,2]
[398071202,1765357841623,-500.0,0.00013698,2]
[398071203,1765357841633,-427.26324322,0.00013698,2]
[398071204,1765357841643,-500.0,0.00013698,2]
[398071205,1765357841652,-500.0,0.00013698,2]
[398071206,1765357841662,-823.7,0.00013698,2]
[398071207,1765357841671,-500.0,0.00013698,2]
[398071208,1765357841680,-500.0,0.00013698,2]
[398071209,1765357841690,-500.0,0.00013698,2]
[398071210,1765357841700,-500.0,0.00013698,2]
[398071211,1765357841719,-555.68,0.00013698,2]
[398071212,1765357841730,-500.0,0.00013698,2]
[398071213,1765357841739,-514.77,0.00013698,2]
[398071214,1765357841749,-500.0,0.00013698,2]
[398071215,1765357841759,-901.29,0.00013698,2]
[398071216,1765357841768,-500.0,0.00013698,2]
[398071217,1765357841778,-500.0,0.00013698,2]
[398071218,1765357841787,-481.75003124,0.00013698,2]
[398071219,1765357841797,-615.28,0.00013698,2]
[398071220,1765357841807,-500.0,0.00013698,2]
[398071221,1765357841816,-500.0,0.00013698,2]
[398071222,1765357841826,-500.0,0.00013698,2]
[398071223,1765357841835,-500.0,0.00013698,2]
[398071224,1765357841845,-534.13,0.00013698,2]
[398071225,1765357841854,-992.07,0.00013698,2]
[398071226,1765357841864,-500.0,0.00013698,2]
[398071227,1765357841873,-573.54,0.00013698,2]
[398071228,1765357841883,-500.0,0.00013698,2]
[398071229,1765357841893,-500.0,0.00013698,2]
[398071230,1765357841902,-500.0,0.00013698,2]
[398071231,1765357841912,-500.0,0.00013698,2]
[398071232,1765357841921,-500.0,0.00013698,2]
[398071233,1765357841931,-500.0,0.00013698,2]
[398071234,1765357841940,-500.0,0.00013698,2]
[398071235,1765357841950,-500.0,0.00013698,2]
[398071236,1765357841959,-505.1065999,0.00013698,2]
[398071237,1765357841968,-500.0,0.00013698,2]
[398071238,1765357841979,-792.07,0.00013698,2]
[398071239,1765357841989,-583.08,0.00013698,2]
[398071240,1765357841998,-500.0,0.00013698,2]
[398071241,1765357842008,-500.0,0.00013698,2]
[398071242,1765357842018,-500.0,0.00013698,2]
[398071243,1765357842027,-500.0,0.00013698,2]
[398071244,1765357842037,-554.64,0.00013698,2]
[398071245,1765357842047,-500.0,0.00013698,2]
[398071246,1765357842056,-500.0,0.00013698,2]
[398071247,1765357842066,-1261.23,0.00013698,2]
[398071248,1765357842075,-500.0,0.00013698,2]
[398071249,1765357842084,-508.91,0.00013698,2]
[398071250,1765357842094,-500.0,0.00013698,2]
[398071251,1765357842107,-1138.44,0.00013698,2]
[398071252,1765357842117,-500.0,0.00013698,2]
[398071253,1765357842127,-150.0,0.00013698,2]
[398071254,1765357842136,-591.7,0.00013698,2]
[398071255,1765357842146,-441.69618644,0.00013698,2]
[398071256,1765357842156,-627.85,0.00013698,2]
[398071257,1765357842166,-150.0,0.00013698,2]
[398071258,1765357842175,-500.0,0.00013698,2]
[398071259,1765357842185,-157.05444941,0.00013698,2]
[398071260,1765357842195,-512.73,0.00013698,2]
[398071261,1765357842205,-500.0,0.00013698,2]
[398071262,1765357842215,-150.0,0.00013698,2]
[398071263,1765357842224,-605.85,0.00013698,2]
[398071264,1765357842235,-537.09,0.00013698,2]
[398071265,1765357842245,-500.0,0.00013698,2]
[398071266,1765357842255,-500.0,0.00013698,2]
[398071267,1765357842264,-500.0,0.00013698,2]
[398071268,1765357842274,-1000.05,0.00013698,2]
[398071269,1765357842284,-500.0,0.00013698,2]
[398071270,1765357842293,-1106.55,0.00013698,2]
[398071271,1765357842303,-500.0,0.00013698,2]
[398071272,1765357842313,-558.83,0.00013698,2]
[398071273,1765357842322,-500.0,0.00013698,2]
[398071274,1765357842333,-500.0,0.00013698,2]
[398071275,1765357842344,-500.0,0.00013698,2]
[398071276,1765357842354,-500.0,0.00013698,2]
[398071277,1765357842364,-500.0,0.00013698,2]
[398071278,1765357842374,-500.0,0.00013698,2]
[398071279,1765357842384,-500.0,0.00013698,2]
[398071280,1765357842393,-500.0,0.00013698,2]
[398071281,1765357842403,-713.37,0.00013698,2]
[398071282,1765357842412,-500.0,0.00013698,2]